Workbook

Sheet Info

Sheet Trial (hidden)

Sheet Instructions (hidden)
A1: Excel Skills | Cash Flow Statement Template
A2: Instructions
A3: www.excel-skills.com
A5: This template enables users to automatically compile a complete cash flow statement by simply entering basic income statement and balance sheet information. The template includes a current and comparative financial period and detailed instructions on the calculation of the line items which are included on the cash flow statement. The template includes statements of cash flow that have been compiled based on both the direct and indirect methods.
A7: The following sheets are included in this template:
A8: Input - this sheet includes all the input cells used in compiling the cash flow statement. User input consists of an income statement and a balance sheet section as well as some additional information which is required in order to produce a cash flow statement.
A9: Direct - this sheet contains a cash flow statement based on the direct method which is automatically calculated from the information entered on the Input sheet. No user input is required on this sheet.
A10: Indirect - this sheet contains a cash flow statement based on the indirect method which is automatically calculated from the information entered on the Input sheet. No user input is required on this sheet.
A12: User Input
A14: All the cells on the Input sheet which require user input are indicated by a yellow or green cell background in the column to the right of the appropriate input cell. The cells which are indicated in yellow require positive values to be entered, while the cells which are indicated in green require negative values to be entered. Cells that don't have a yellow or green colour next to them contain formulas and should be left unchanged.
A16: If you are concerned about replacing the formulas in the cells that do not require user input, you can protect the sheet with a user defined password. Only valid input cells will then be available for user input. The Protect Sheet feature can be accessed by selecting the Review tab on the ribbon and selecting the Protect Sheet option from the Changes section of the ribbon. You will be required to enter and to confirm a user defined password (all input cells have already been unlocked in order to allow user input).
A18: The default reporting periods can be amended by simply entering a new year in cell B2. All the other cells in this template that contain references to the reporting periods will automatically be amended.
A20: The additional information section requires users to specify whether any business acquisitions, disposals of property, plant and equipment or intangibles and raising of long term finance occurred during the current and previous financial periods. The default input values in these cells can be replaced by nil values if they are not applicable.
A22: You'll also notice that three years' balance sheet information is required in order to produce a cash flow statement with accurate comparative data.
A24: The Input sheet also contains 4 control totals in rows 56 to 59 which should all be nil otherwise the cash flow statements will not balance. Each of these control totals are covered in more detail in the Control Totals sub section of these instructions which follows next.
A26: Control Totals
A28: The balance sheet control total in row 56 has been added to the sheet to highlight an imbalance on the balance sheet after entering the required balance sheet information. If an imbalance is encountered, the cells in this row will be highlighted in orange and it simply means that your balance sheet does not balance which will also result in your cash flow statements not balancing.
A30: The depreciation control total in row 57 highlights an inconsistency between the depreciation charges in the income statement and the accumulated depreciation charges in the balance sheet (with disposals being taken into account). The income statement charges are added back in the cash flow statement which means that if these charges are not consistent with the balance sheet movement in accumulated depreciation, the cash flow statement may not balance as a result of this inconsistency.
A32: The amortization control total in row 58 basically functions in the same way as the depreciation control total but is applied to amortization and accumulated amortization on intangibles instead of depreciation on property, plant and equipment. The same principle applies - the income statement charges are added back on the cash flow statement and if these charges are not consistent with the movement in accumulated amortization, the cash flow statements may not balance.
A34: The retained earnings control total in row 59 tests whether the balance sheet movement in the retained earnings line is consistent with the profit or loss for the period. If it is not, it indicates that other adjustments (like for example a prior year adjustment) have been made directly against retained earnings instead of being included in the income statement. If such adjustments have been made, the adjustments need to be included in the adjustment section of the cash flow statements on the Direct and Indirect sheets.
A36: Cash Flow Statement Calculations
A38: This section of the instructions provides more information on the calculations which are performed for each line item on the cash flow statements. Note that both cash flow statements are calculated automatically and no user input is therefore required on either the Direct or Indirect sheets.
A40: Cash receipts from customers
A42: This amount is calculated by adding the turnover amount to the opening trade accounts receivable balance and the trade accounts receivable balance which forms part of business acquisitions for the particular period. The closing trade accounts receivable balance is then deducted from this total in order to calculate the amount of cash which has been received from customers.
A44: Cash paid to suppliers and employees
A46: This amount is determined by calculating the cash generated from operations and deducting it from the cash receipts from customers. The calculation of cash generated from operations is discussed in the next section.
A48: An alternative calculation of the cash paid to suppliers and employees is as follows:
A49: Profit before taxation
A50: Less: Turnover
A51: Add: Depreciation
A52: Add: Amortization
A53: Add: Interest expense
A54: Less: Investment income
A55: Add: Other non-cash items which are included in expenditure (for example: loss on disposal of equipment or intangibles)
A56: Add: Inventory opening balance
A57: Less: Inventory closing balance
A58: Add: Trade payables closing balance
A59: Less: Trade payables opening balance
A61: As you can see, this calculation is quite complicated and we therefore recommend calculating the cash generated from operations and then simply deducting the cash receipts from customers from this amount.
A63: Cash generated from operations
A65: A detailed calculation of this amount is included below the cash flow statement on the Direct sheet and at the top of the cash flow statement on the Indirect sheet. The calculation starts with the profit or loss before taxation and all non-cash income & expenses and items which are included in other line items on the cash flow statements are then added back from the calculated amounts.
A67: Investment income and interest expenses are added back because these items are included separately on the cash flow statement. The depreciation, amortization, profit or loss from sale of property, plant & equipment and profit or loss from the sale of intangibles are non-cash items and are also added back. Balance sheet movements in reserves are also non-cash items and also added back.
A69: The net effect of all working capital balances is then deducted in the calculation because these items also form part of operating cash flow. Note that an increase in accounts receivable and inventory results of an outflow of cash and should therefore be deducted. An increase in payables, however, results in an inflow of cash (because less payments are made to creditors) and should therefore be added in the calculation. A decrease in payables is therefore an outflow of cash and should be deducted.
A71: Note: The receivables and payables lines include multiple balance sheet items which have been consolidated into a single line for cash flow statement purposes. Trade receivables, loans & advances and other receivables are grouped together in the receivables lines and trade payables, sales tax, payroll accruals and other accruals are grouped together in the payables lines on the cash flow statements.
A73: Interest, Income Tax and Dividends
A75: These amounts are all calculated by adding the appropriate income statement amounts to the opening balance of the appropriate provisions (liabilities) and deducting the closing balance of the appropriate provisions from this calculation. All three amounts are negative because all three items result in an outflow of cash.
A77: Business Acquisitions
A79: This amount should be the total amount which was paid in order to acquire a new or existing business net of the cash amount received from the business acquired.
A81: Also note that the amounts that are included in each individual asset class should be added to the appropriate opening balance of the asset class in determining the increase or decrease in the balance of each asset class. For example, in determining the increase in inventory, the inventory amount which forms part of the business acquisition section is added to the opening inventory balance on the balance sheet before deducting the closing inventory balance in order to determine the movement in inventory between the two financial years under review.
A83: Purchase of property, plant and equipment
A85: The amount of cash purchases of property plant & equipment is determined as follows:
A86: Property, plant & equipment - closing balance at cost
A87: Less: Property, plant & equipment - opening balance at cost
A88: Less: Property, plant & equipment - acquired through business acquisitions
A89: Add: Cost of assets which were sold during the period under review
A90: Less: Acquisitions financed through financial leases
A92: Note that the calculated amount is a cash outflow and should be included on the cash flow statement as a negative amount and that financial leases do not result in an immediate outflow of cash and should therefore be excluded from this line item. Payments of financial leases should be included under the financing activities section of the cash flow statement.
A94: Also note that revaluations of property, plant and equipment should also be excluded from the cash flow statement by deducting the movement in the revaluation reserve in the above calculation.
A96: Purchase of intangible assets
A98: These amounts are calculated in much the same way as the property, plant and equipment amounts but are based on intangible assets instead. Finance leases also play no role in the calculation of intangible amounts because these are unique to property, plant & equipment.
A100: Proceeds from sale of equipment or intangibles
A102: These amounts are the cash amounts which are received after the sale of equipment or intangible assets and are included in the Additional information section on the Input sheet.
A104: Acquisition of investments
A106: This amount is calculated by deducting the closing investment balance from the opening investment balance and deducting any amounts received through business acquisitions.
A108: Investment income
A110: This amount is included in this section of the cash flow statement because it does not form part of operating cash flows. Note that investment income is deducted in the cash generated from operations calculation because it is included in the profit before tax and it is included as a separate line item on the cash flow statement.
A112: Proceeds from issue of share capital
A114: This amount is calculated by deducting the opening share capital balance from the closing share capital balance. An increase in share capital results in an inflow of cash.
A116: Proceeds from long-term borrowings
A118: This amount is specified in the Additional information section on the Input sheet and should include all the long term debt which was raised during the period under review, but should exclude all the finance leases that are deducted from the property, plant & equipment cash acquisitions total.
A120: Payment of long-term borrowings
A122: This amount is calculated as follows:
A123: Long term debt closing balance
A124: Less: Long term debt opening balance
A125: Less: Long term debt included in business acquisitions
A126: Less: Long term debt raised
A127: Less: Finance lease acquisitions
A129: The calculation should be included on the cash flow statement as a negative amount because the payment of long term debt results in an outflow of cash. The finance lease acquisitions should be excluded because this amount is set off against the property, plant & equipment acquisitions and the long term debt raised is deducted because it is included in a separate line item on the cash flow statement.
A131: Cash Flow Statement Control Total
A133: The cash balance control total in row 34 on the Direct sheet and row 45 on the Indirect sheet has been included in order to highlight an imbalance between the closing cash balance on the balance sheet and the closing cash balance on the cash flow statement. If an imbalance is encountered on one of these sheets, the appropriate cells in this row will be highlighted in orange.
A135: Help & Customization
A137: If you experience any difficulty while using this template and you are not able to find the appropriate guidance in these instructions, please e-mail us at support@excel-skills.com for assistance. This template has been designed with flexibility in mind to ensure that it can be used in most business environments. If however you need an Excel based template that is customized specifically for your business requirements, please e-mail our Support function and provide a brief explanation of your requirements.
A139: © Copyright
A141: This template remains the intellectual property of www.excel-skills.com and is protected by international copyright laws. Any publication or distribution of this template outside the scope of the permitted use of the template is expressly prohibited. In terms of the permitted use of this template, only the distribution of the template to persons within the same organisation as the registered user or persons outside the organisation who can reasonably be expected to require access to the template as a direct result of the use of the template by the registered user is allowed. Subsequent distribution of the template by parties outside of the organisation is however expressly prohibited and represents an infringement of international copyright laws.

Sheet Input (hidden)
A1: Cash Flow Statement Data
A2: Current Reporting Period | B2: 2020
A3: © www.excel-skills.com
A4: Income Statement | B4: =IF(ISBLANK($B$2),YEAR(TODAY()),$B$2) -> 2020 | D4: =IF(ISBLANK($B$2),YEAR(TODAY()),$B$2)-1 -> 2019
A5: Turnover | B5: 316500 | D5: 265200
A6: Cost of sales | B6: -260000 | D6: -242800
A7: Gross profit | B7: =SUM(B5:B6) -> 56500 | D7: =SUM(D5:D6) -> 22400
A8: Depreciation | B8: -4700 | D8: -2500
A9: Amortization | B9: -1000 | D9: -1000
A10: Administrative and selling expenses | B10: -9500 | D10: -8000
A11: Interest expense | B11: -4000 | D11: -3000
A12: Investment income | B12: 5000 | D12: 3500
A13: Profit before taxation | B13: =SUM(B7:B12) -> 42300 | D13: =SUM(D7:D12) -> 11400
A14: Taxes on income | B14: -12000 | D14: -4000
A15: Profit | B15: =SUM(B13:B14) -> 30300 | D15: =SUM(D13:D14) -> 7400
A16: Dividends paid | B16: -7575 | D16: -1850
A17: Retained Earnings | B17: =SUM(B15:B16) -> 22725 | D17: =SUM(D15:D16) -> 5550
A19: Balance Sheet | B19: =$B$4 -> 2020 | D19: =$D$4 -> 2019 | F19: =$D$19-1 -> 2018
A21: Assets
A22: Non-current assets
A23: Property, plant and equipment | B23: =SUM(B24:B25) -> 25800 | D23: =SUM(D24:D25) -> 11500 | F23: =SUM(F24:F25) -> 7000
A24: Property, plant and equipment at cost | B24: 37300 | D24: 19000 | F24: 15000
A25: Accumulated depreciation | B25: -11500 | D25: -7500 | F25: -8000
A26: Intangible assets | B26: =SUM(B27:B28) -> 8000 | D26: =SUM(D27:D28) -> 9000 | F26: =SUM(F27:F28) -> 0
A27: Intangible assets at cost | B27: 10000 | D27: 10000 | F27: 0
A28: Accumulated amortization | B28: -2000 | D28: -1000 | F28: 0
A29: Investments | B29: 25000 | D29: 15000 | F29: 13500
A30: Current assets
A31: Inventory | B31: 22000 | D31: 15500 | F31: 12000
A32: Trade receivables | B32: 18000 | D32: 9000 | F32: 6950
A33: Loans & advances | B33: 1200 | D33: 800 | F33: 500
A34: Other receivables | B34: 1800 | D34: 1000 | F34: 500
A35: Interest receivable | B35: 1000 | D35: 800 | F35: 0
A36: Cash and cash equivalents | B36: 11500 | D36: 1600 | F36: 3200
A37: Total assets | B37: =SUM(B23,B26,B29:B36) -> 114300 | D37: =SUM(D23,D26,D29:D36) -> 64200 | F37: =SUM(F23,F26,F29:F36) -> 43650
A39: Equity & liabilities
A40: Equity
A41: Share capital | B41: 150 | D41: 150 | F41: 125
A42: Retained earnings | B42: 33275 | D42: 10550 | F42: 5000
A43: Reserves | B43: 0 | D43: 0 | F43: 0
A44: Non-current liabilities
A45: Long term loans | B45: 29900 | D45: 23850 | F45: 16300
A46: Current liabilities
A47: Trade payables | B47: 17500 | D47: 14800 | F47: 10900
A48: Sales tax | B48: 5000 | D48: 2900 | F48: 1325
A49: Payroll accruals | B49: 4700 | D49: 4000 | F49: 3500
A50: Other accruals | B50: 2000 | D50: 1100 | F50: 1200
A51: Interest payable | B51: 2200 | D51: 1000 | F51: 800
A52: Income taxes payable | B52: 12000 | D52: 4000 | F52: 3000
A53: Dividends payable | B53: 7575 | D53: 1850 | F53: 1500
A54: Total equity and liabilities | B54: =SUM(B40:B53) -> 114300 | D54: =SUM(D40:D53) -> 64200 | F54: =SUM(F40:F53) -> 43650
A56: Balance Sheet Control | B56: =B37-B54 -> 0 | D56: =D37-D54 -> 0 | F56: =F37-F54 -> 0
A57: Depreciation Control | B57: =B25-D25+B76-B8 -> 0 | D57: =D25-F25+D76-D8 -> 0
A58: Amortization Control | B58: =B28-D28+B83-B9 -> 0 | D58: =D28-F28+D83-D9 -> 0
A59: Retained Earnings Control | B59: =B42-B17-D42 -> 0 | D59: =D42-D17-F42 -> 0
A61: Additional Information | B61: =$B$4 -> 2020 | D61: =$D$4 -> 2019
A63: Business Acquisitions Values
A64: Property, plant and equipment | B64: 15000 | D64: 0
A65: Intangible assets | B65: 0 | D65: 0
A66: Investments | B66: 0 | D66: 0
A67: Inventories | B67: 3000 | D67: 0
A68: Accounts receivable | B68: 1500 | D68: 0
A69: Cash | B69: 1000 | D69: 0
A70: Trade payables | B70: -2000 | D70: 0
A71: Long-term debt | B71: 0 | D71: 0
B72: =SUM(B64:B71) -> 18500 | D72: =SUM(D64:D71) -> 0
A74: Disposal of Property, Plant & Equipment
A75: Cost | B75: 1000 | D75: 3000
A76: Accumulated Depreciation | B76: -700 | D76: -3000
A77: Book value | B77: =SUM(B75:B76) -> 300 | D77: =SUM(D75:D76) -> 0
A78: Proceeds on sale of property, plant & equipment | B78: 0 | D78: 400
A79: Profit / (Loss) on sale of equipment | B79: =B78-B77 -> -300 | D79: =D78-D77 -> 400
A81: Disposal of Intangible Assets
A82: Cost | B82: 0 | D82: 0
A83: Accumulated Amortization | B83: 0 | D83: 0
A84: Book value | B84: =SUM(B82:B83) -> 0 | D84: =SUM(D82:D83) -> 0
A85: Proceeds on sale of intangible assets | B85: 0 | D85: 0
A86: Profit / (Loss) on sale of intangibles | B86: =B85-B84 -> 0 | D86: =D85-D84 -> 0
A88: Long Term Debt
A89: Loans raised | B89: 10000 | D89: 4000
A90: Finance lease acquisitions | B90: 0 | D90: 5000
B91: =SUM(B89:B90) -> 10000 | D91: =SUM(D89:D90) -> 9000

Sheet Direct (hidden)
A1: Statement of Cash Flows
A2: © www.excel-skills.com | B2: =IF(ISBLANK(Input!B$4),YEAR(TODAY()),Input!B$4) -> 2020 | D2: =B2-1 -> 2019
A3: Cash flows from operating activities
A4: Cash receipts from customers | B4: =Input!D32+Input!B5-Input!B32+Input!B68 -> 309000 | D4: =Input!F32+Input!D5-Input!D32+Input!D68 -> 263150
A5: Cash paid to suppliers and employees | B5: =B6-B4 -> -269500 | D5: =D6-D4 -> -249625
A6: Cash generated from operations | B6: =B52 -> 39500 | D6: =D52 -> 13525
A7: Interest paid | B7: =-(Input!D51-Input!B11-Input!B51) -> -2800 | D7: =-(Input!F51-Input!D11-Input!D51) -> -2800
A8: Income taxes paid | B8: =-(Input!D52-Input!B14-Input!B52) -> -4000 | D8: =-(Input!F52-Input!D14-Input!D52) -> -3000
A9: Dividends paid | B9: =-(Input!D53-Input!B16-Input!B53) -> -1850 | D9: =-(Input!F53-Input!D16-Input!D53) -> -1500
A10: Net cash from operating activities | B10: =SUM(B6:B9) -> 30850 | D10: =SUM(D6:D9) -> 6225
A12: Cash flows from investing activities
A13: Business acquisitions, net of cash acquired | B13: =-Input!B72+Input!B69 -> -17500 | D13: =-Input!D72 -> 0
A14: Purchase of property, plant and equipment | B14: =Input!D24-Input!B24+Input!B64-Input!B75+Input!B90 -> -4300 | D14: =Input!F24-Input!D24+Input!D64-Input!D75+Input!D90 -> -2000
A15: Purchase of intangible assets | B15: =Input!D27-Input!B27+Input!B65-Input!B82 -> 0 | D15: =Input!F27-Input!D27+Input!D65-Input!D82 -> -10000
A16: Proceeds from sale of equipment | B16: =Input!B78 -> 0 | D16: =Input!D78 -> 400
A17: Proceeds from sale of intagibles | B17: =Input!B85 -> 0 | D17: =Input!D85 -> 0
A18: Acquisition of investments | B18: =Input!D29-Input!B29+Input!B66 -> -10000 | D18: =Input!F29-Input!D29+Input!D66 -> -1500
A19: Investment income | B19: =Input!D35+Input!B12-Input!B35 -> 4800 | D19: =Input!F35+Input!D12-Input!D35 -> 2700
A20: Net cash used in investing activities | B20: =SUM(B13:B19) -> -27000 | D20: =SUM(D13:D19) -> -10400
A22: Cash flows from financing activities
A23: Proceeds from issue of share capital | B23: =Input!B41-Input!D41 -> 0 | D23: =Input!D41-Input!F41 -> 25
A24: Proceeds from long-term borrowings | B24: =Input!B89 -> 10000 | D24: =Input!D89 -> 4000
A25: Payment of long-term borrowings | B25: =Input!B45-Input!D45+Input!B71-Input!B91 -> -3950 | D25: =Input!D45-Input!F45+Input!D71-Input!D91 -> -1450
A26: Net cash used in financing activities | B26: =SUM(B23:B25) -> 6050 | D26: =SUM(D23:D25) -> 2575
A28: Net increase in cash and cash equivalents | B28: =SUM(B10,B20,B26) -> 9900 | D28: =SUM(D10,D20,D26) -> -1600
A30: Cash and cash equivalents at beginning of period | B30: =Input!D36 -> 1600 | D30: =Input!F36 -> 3200
A32: Cash and cash equivalents at end of period | B32: =SUM(B28,B30) -> 11500 | D32: =SUM(D28,D30) -> 1600
A34: Cash Balance Control Total | B34: =B32-Input!B36 -> 0 | D34: =D32-Input!D36 -> 0
A36: Notes to the Statement of Cash Flows | B36: =B2 -> 2020 | D36: =D2 -> 2019
A38: Cash flows from operating activities
A39: Profit / (Loss) before taxation | B39: =Input!B13 -> 42300 | D39: =Input!D13 -> 11400
A40: Adjustments for:
A41: Depreciation | B41: =-Input!B8 -> 4700 | D41: =-Input!D8 -> 2500
A42: Amortization | B42: =-Input!B9 -> 1000 | D42: =-Input!D9 -> 1000
A43: Investment income | B43: =-Input!B12 -> -5000 | D43: =-Input!D12 -> -3500
A44: Interest expense | B44: =-Input!B11 -> 4000 | D44: =-Input!D11 -> 3000
A45: Profit / (Loss) on the sale of property, plant & equipment | B45: =-Input!B79 -> 300 | D45: =-Input!D79 -> -400
A46: Profit / (Loss) on the sale of intangible assets | B46: =-Input!B86 -> 0 | D46: =-Input!D86 -> 0
A47: Movement in reserves | B47: =Input!B43-Input!D43 -> 0 | D47: =Input!D43-Input!F43 -> 0
A48: Working capital changes:
A49: (Increase) / Decrease in trade and other receivables | B49: =Input!D32+Input!D33+Input!D34-Input!B32-Input!B33-Input!B34+Input!B68 -> -8700 | D49: =Input!F32+Input!F33+Input!F34-Input!D32-Input!D33-Input!D34+Input!D68 -> -2850
A50: (Increase) / (Decrease) in inventories | B50: =Input!D31-Input!B31+Input!B67 -> -3500 | D50: =Input!F31-Input!D31+Input!D67 -> -3500
A51: Increase / (Decrease) in trade and other payables | B51: =Input!B47+Input!B48+Input!B49+Input!B50-Input!D47-Input!D48-Input!D49-Input!D50+Input!B70 -> 4400 | D51: =Input!D47+Input!D48+Input!D49+Input!D50-Input!F47-Input!F48-Input!F49-Input!F50+Input!D70 -> 5875
A52: Cash generated from operations | B52: =SUM(B39:B51) -> 39500 | D52: =SUM(D39:D51) -> 13525

Sheet Indirect (hidden)
A1: Statement of Cash Flows
A2: © www.excel-skills.com | B2: =IF(ISBLANK(Input!B$4),YEAR(TODAY()),Input!B$4) -> 2020 | D2: =B2-1 -> 2019
A3: Cash flows from operating activities
A4: Profit / (Loss) before taxation | B4: =Input!B13 -> 42300 | D4: =Input!D13 -> 11400
A5: Adjustments for:
A6: Depreciation | B6: =-Input!B8 -> 4700 | D6: =-Input!D8 -> 2500
A7: Amortization | B7: =-Input!B9 -> 1000 | D7: =-Input!D9 -> 1000
A8: Investment income | B8: =-Input!B12 -> -5000 | D8: =-Input!D12 -> -3500
A9: Interest expense | B9: =-Input!B11 -> 4000 | D9: =-Input!D11 -> 3000
A10: Profit / (Loss) on the sale of property, plant & equipment | B10: =-Input!B79 -> 300 | D10: =-Input!D79 -> -400
A11: Profit / (Loss) on the sale of intangible assets | B11: =-Input!B86 -> 0 | D11: =-Input!D86 -> 0
A12: Movement in reserves | B12: =Input!B43-Input!D43 -> 0 | D12: =Input!D43-Input!F43 -> 0
A13: Working capital changes:
A14: (Increase) / Decrease in trade and other receivables | B14: =Input!D32+Input!D33+Input!D34-Input!B32-Input!B33-Input!B34+Input!B68 -> -8700 | D14: =Input!F32+Input!F33+Input!F34-Input!D32-Input!D33-Input!D34+Input!D68 -> -2850
A15: (Increase) / (Decrease) in inventories | B15: =Input!D31-Input!B31+Input!B67 -> -3500 | D15: =Input!F31-Input!D31+Input!D67 -> -3500
A16: Increase / (Decrease) in trade and other payables | B16: =Input!B47+Input!B48+Input!B49+Input!B50-Input!D47-Input!D48-Input!D49-Input!D50+Input!B70 -> 4400 | D16: =Input!D47+Input!D48+Input!D49+Input!D50-Input!F47-Input!F48-Input!F49-Input!F50+Input!D70 -> 5875
A17: Cash generated from operations | B17: =SUM(B4:B16) -> 39500 | D17: =SUM(D4:D16) -> 13525
A18: Interest paid | B18: =-(Input!D51-Input!B11-Input!B51) -> -2800 | D18: =-(Input!F51-Input!D11-Input!D51) -> -2800
A19: Income taxes paid | B19: =-(Input!D52-Input!B14-Input!B52) -> -4000 | D19: =-(Input!F52-Input!D14-Input!D52) -> -3000
A20: Dividends paid | B20: =-(Input!D53-Input!B16-Input!B53) -> -1850 | D20: =-(Input!F53-Input!D16-Input!D53) -> -1500
A21: Net cash from operating activities | B21: =SUM(B17:B20) -> 30850 | D21: =SUM(D17:D20) -> 6225
A23: Cash flows from investing activities
A24: Business acquisitions, net of cash acquired | B24: =-Input!B72+Input!B69 -> -17500 | D24: =-Input!D72 -> 0
A25: Purchase of property, plant and equipment | B25: =Input!D24-Input!B24+Input!B64-Input!B75+Input!B90 -> -4300 | D25: =Input!F24-Input!D24+Input!D64-Input!D75+Input!D90 -> -2000
A26: Purchase of intangible assets | B26: =Input!D27-Input!B27+Input!B65-Input!B82 -> 0 | D26: =Input!F27-Input!D27+Input!D65-Input!D82 -> -10000
A27: Proceeds from sale of equipment | B27: =Input!B78 -> 0 | D27: =Input!D78 -> 400
A28: Proceeds from sale of intagibles | B28: =Input!B85 -> 0 | D28: =Input!D85 -> 0
A29: Acquisition of investments | B29: =Input!D29-Input!B29+Input!B66 -> -10000 | D29: =Input!F29-Input!D29+Input!D66 -> -1500
A30: Investment income | B30: =Input!D35+Input!B12-Input!B35 -> 4800 | D30: =Input!F35+Input!D12-Input!D35 -> 2700
A31: Net cash used in investing activities | B31: =SUM(B24:B30) -> -27000 | D31: =SUM(D24:D30) -> -10400
A33: Cash flows from financing activities
A34: Proceeds from issue of share capital | B34: =Input!B41-Input!D41 -> 0 | D34: =Input!D41-Input!F41 -> 25
A35: Proceeds from long-term borrowings | B35: =Input!B89 -> 10000 | D35: =Input!D89 -> 4000
A36: Payment of long-term borrowings | B36: =Input!B45-Input!D45+Input!B71-Input!B91 -> -3950 | D36: =Input!D45-Input!F45+Input!D71-Input!D91 -> -1450
A37: Net cash used in financing activities | B37: =SUM(B34:B36) -> 6050 | D37: =SUM(D34:D36) -> 2575
A39: Net increase in cash and cash equivalents | B39: =SUM(B21,B31,B37) -> 9900 | D39: =SUM(D21,D31,D37) -> -1600
A41: Cash and cash equivalents at beginning of period | B41: =Input!D36 -> 1600 | D41: =Input!F36 -> 3200
A43: Cash and cash equivalents at end of period | B43: =SUM(B39,B41) -> 11500 | D43: =SUM(D39,D41) -> 1600
A45: Cash Balance Control Total | B45: =B43-Input!B36 -> 0 | D45: =D43-Input!D36 -> 0
